bitfinex/quotes_SOLUSD_20241222
["timestamp","ask_amount","ask_price","bid_price","bid_amount"]
[1734838022077,0.11064206,183.72,183.65,29.1087523]
[1734838022455,0.11064206,183.72,183.61,29.1087523]
[1734838022662,0.66174206,183.72,183.59,29.1087523]
[1734838022947,0.66174206,183.72,183.63,29.1087523]
[1734838023177,0.11064206,183.72,183.64,29.1087523]
[1734838023358,0.11064206,183.72,183.65,29.1087523]
[1734838023554,0.11064206,183.72,183.64,29.1087523]
[1734838024455,0.11064206,183.72,183.67,29.1087523]
[1734838024984,0.11064206,183.72,183.66,29.1087523]
[1734838025191,0.11064206,183.72,183.67,29.1087523]
[1734838025560,0.11064206,183.72,183.66,29.1087523]
[1734838026065,0.11064206,183.72,183.67,29.1087523]
[1734838026482,0.11064206,183.72,183.66,29.1087523]
[1734838027578,0.11064206,183.72,183.64,29.1087523]
[1734838028201,1.13123812,183.72,183.6,29.1087523]
[1734838028504,3.5913,183.71,183.61,29.1087523]
[1734838028663,3.5913,183.71,183.65,29.1087523]
[1734838028859,0.11064206,183.72,183.67,29.1087523]
[1734838029368,0.11064206,183.72,183.68,29.1087523]
[1734838029876,0.11064206,183.72,183.67,29.1087523]
[1734838030068,0.11064206,183.72,183.69,29.1087523]
[1734838030275,0.11064206,183.72,183.7,29.1087523]
[1734838031085,0.11064206,183.72,183.67,29.1087523]
[1734838031286,0.11064206,183.72,183.64,29.1087523]
[1734838032201,1.02047759,183.77,183.66,29.1087523]
[1734838032794,0.10191024,183.67,183.65,29.1087523]
[1734838033090,0.10191024,183.67,183.64,29.1087523]
[1734838033307,0.10191024,183.67,183.65,29.1087523]
[1734838034959,0.10191024,183.67,183.64,29.1087523]
[1734838035384,0.10191024,183.67,183.62,29.1087523]
[1734838035793,0.10191024,183.67,183.65,29.1087523]
[1734838036004,0.10191024,183.67,183.64,29.1087523]
[1734838036365,0.10191024,183.67,183.65,29.1087523]
[1734838036665,0.10191024,183.67,183.66,29.1087523]
[1734838039166,0.10191024,183.67,183.64,29.1087523]
[1734838039384,0.10191024,183.67,183.62,29.1087523]
[1734838039579,0.10191024,183.67,183.61,29.1087523]
[1734838039785,0.10191024,183.67,183.62,59.1087523]
[1734838039999,0.10191024,183.67,183.63,29.1087523]
[1734838040309,0.10191024,183.67,183.64,29.1087523]
[1734838040672,0.10191024,183.67,183.63,29.1087523]
[1734838041105,0.10191024,183.67,183.57,1.6542]
[1734838041267,0.10191024,183.67,183.56,29.1087523]
[1734838043999,0.10191024,183.67,183.59,29.1087523]
[1734838044174,1.12282651,183.67,183.56,29.1087523]
[1734838044372,1.12282651,183.67,183.53,29.1087523]
[1734838044576,1.12282651,183.67,183.54,29.1087523]
[1734838044995,1.12282651,183.67,183.55,29.1087523]
[1734838045519,20.0,183.63,183.5,29.1087523]
[1734838045799,3.5913,183.61,183.48,29.1087523]
[1734838046102,1.02140878,183.6,183.48,29.1087523]
[1734838046480,1.02140878,183.6,183.45,21.8211]
[1734838046481,3.5913,183.61,183.5,29.1087523]
[1734838046691,3.5913,183.61,183.45,21.8211]
[1734838046692,3.5913,183.61,183.52,29.1087523]
[1734838046895,3.5913,183.61,183.53,29.1087523]
[1734838047098,3.5913,183.66,183.56,29.1087523]
[1734838047400,4.61234473,183.66,183.56,29.1087523]
[1734838047796,3.5913,183.66,183.56,29.1087523]
[1734838048001,3.5913,183.66,183.52,13.6222]
[1734838048190,3.5913,183.66,183.56,29.1087523]
[1734838048796,3.5913,183.66,183.58,29.1087523]
[1734838048995,3.5913,183.66,183.6,29.1087523]
[1734838049200,3.5913,183.66,183.57,29.1087523]
[1734838049823,3.5913,183.66,183.58,29.1087523]
[1734838050346,0.10191024,183.67,183.6,29.1087523]
[1734838050495,0.10191024,183.67,183.63,29.1087523]
[1734838050693,0.10191024,183.67,183.64,29.1087523]
[1734838051031,0.10191024,183.67,183.63,29.1087523]
[1734838051184,0.10191024,183.67,183.62,29.1087523]
[1734838052204,1.02066134,183.73,183.62,29.1087523]
[1734838052708,0.10021557,183.63,183.62,29.1087523]
[1734838053020,0.10021557,183.63,183.61,29.1087523]
[1734838053219,0.10021557,183.63,183.59,29.1087523]
[1734838053408,0.10021557,183.63,183.58,29.1087523]
[1734838054155,0.10021557,183.63,183.56,29.1087523]
[1734838054303,0.10021557,183.63,183.55,29.1087523]
[1734838054504,0.10021557,183.63,183.56,29.1087523]
[1734838055906,0.10021557,183.63,183.54,29.1087523]
[1734838056319,0.10021557,183.63,183.52,29.1087523]
[1734838057096,0.10021557,183.63,183.55,29.1087523]
[1734838057423,0.10021557,183.63,183.57,29.1087523]
[1734838057602,0.10021557,183.63,183.54,20.0]
[1734838057806,0.10021557,183.63,183.56,29.1087523]
[1734838058224,0.10021557,183.63,183.55,29.1087523]
[1734838059296,0.10021557,183.63,183.52,29.1087523]
[1734838059500,0.10021557,183.63,183.51,29.1087523]
[1734838059696,0.10021557,183.63,183.49,29.1087523]
[1734838060028,4.61261298,183.62,183.47,29.1087523]
[1734838060601,20.0,183.59,183.46,29.1087523]
[1734838060902,1.02155614,183.58,183.46,29.1087523]
[1734838061313,1.02155614,183.58,183.42,29.1087523]
[1734838061512,1.02155614,183.58,183.41,29.1087523]
[1734838061513,1.3618,183.57,183.41,29.1087523]
[1734838061717,20.0,183.52,183.39,29.1087523]
[1734838061913,21.57302195,183.51,183.37,29.1087523]
[1734838062117,21.57302195,183.51,183.36,29.1087523]
[1734838062317,21.57302195,183.51,183.37,30.0]
[1734838062708,21.57302195,183.51,183.35,29.1087523]
[1734838062919,21.57302195,183.51,183.34,29.1087523]
[1734838063236,25.139184,183.5,183.33,29.1087523]
[1734838063403,20.0,183.47,183.31,30.6922523]
[1734838063602,3.5913,183.45,183.32,29.1087523]
[1734838063808,3.5913,183.45,183.35,29.1087523]
[1734838064038,3.5913,183.45,183.33,29.1087523]
[1734838064205,3.5913,183.45,183.34,29.1087523]
[1734838064400,3.5913,183.45,183.35,29.1087523]
[1734838064709,3.5913,183.5,183.38,29.1087523]
[1734838065223,3.5913,183.5,183.4,29.1087523]
[1734838065400,1.3618,183.58,183.43,29.1087523]
[1734838065401,4.1424,183.57,183.43,29.1087523]
[1734838065731,4.1424,183.57,183.39,35.4763523]
[1734838065732,1.02166114,183.56,183.39,35.4763523]
[1734838066228,1.02166114,183.56,183.4,29.1087523]
[1734838066416,1.02166114,183.56,183.41,29.1087523]
[1734838066621,20.0,183.54,183.4,29.1087523]
[1734838066822,1.02176655,183.53,183.4,29.1087523]
[1734838067008,1.02176655,183.53,183.38,29.1087523]
[1734838069120,1.02176655,183.53,183.39,29.1087523]
[1734838069642,1.02176655,183.53,183.4,29.1087523]
[1734838070132,1.02177601,183.53,183.42,29.1087523]
[1734838070312,1.02177601,183.53,183.4,29.1087523]
[1734838070512,1.02177601,183.53,183.39,29.1087523]
[1734838071246,1.02177601,183.53,183.4,29.1087523]
[1734838072642,0.10205344,183.41,183.4,29.1087523]
[1734838072848,0.10205344,183.41,183.38,29.1087523]
[1734838073050,0.10205344,183.41,183.36,29.1087523]
[1734838073344,0.10205344,183.41,183.33,29.1087523]
[1734838074341,0.10205344,183.41,183.31,29.1087523]
[1734838074839,0.10205344,183.41,183.29,31.99063087]
[1734838075231,0.10205344,183.41,183.29,2.88187857]
[1734838075756,0.10205344,183.41,183.29,0.6732361]
[1734838076659,20.0,183.38,183.29,0.6732361]
[1734838076839,4.61393113,183.4,183.29,0.6732361]
[1734838077047,3.5913,183.4,183.31,29.1087523]
[1734838077219,3.5913,183.4,183.29,0.6732361]
[1734838077421,3.5913,183.4,183.32,29.1087523]
[1734838078447,0.10205344,183.41,183.34,29.1087523]
[1734838078642,0.10205344,183.41,183.35,29.1087523]
[1734838079220,0.10205344,183.41,183.34,29.1087523]
[1734838079439,0.10205344,183.41,183.33,29.1087523]
[1734838080023,0.10205344,183.41,183.34,29.1087523]
[1734838081653,0.10205344,183.41,183.33,29.1087523]
[1734838081836,0.10205344,183.41,183.32,44.3621523]
[1734838082241,0.10205344,183.41,183.31,29.1087523]
[1734838082439,0.10205344,183.41,183.3,29.1087523]
[1734838082953,0.10205344,183.41,183.29,14.3127361]
[1734838083132,0.10205344,183.41,183.29,0.6732361]
[1734838083959,25.24193744,183.41,183.29,0.6732361]
[1734838084139,20.0,183.38,183.29,0.6732361]
[1734838084451,1.02267632,183.4,183.29,0.6732361]
[1734838084650,25.24193744,183.41,183.3,29.1087523]
[1734838084651,0.10205344,183.41,183.3,29.1087523]
[1734838084840,1.12445699,183.41,183.29,29.7819884]
[1734838085155,23.776884,183.4,183.29,0.6732361]
[1734838085330,1.02265805,183.39,183.29,0.6732361]
[1734838086526,1.1246297,183.41,183.3,29.1087523]
[1734838086853,0.10205344,183.41,183.29,0.6732361]
[1734838087029,0.10205344,183.41,183.33,29.1087523]
[1734838087358,0.10205344,183.41,183.32,29.1087523]
[1734838087656,0.10205344,183.41,183.33,29.1087523]
[1734838088332,0.10205344,183.41,183.34,29.1087523]
[1734838088534,0.10205344,183.41,183.35,29.1087523]
[1734838089046,1.12421513,183.41,183.3,29.1087523]
[1734838089352,1.12421513,183.41,183.29,0.6732361]
[1734838089541,4.1424,183.39,183.29,0.6732361]
[1734838089730,1.02279363,183.38,183.29,0.6732361]
[1734838090132,20.0,183.36,183.29,0.6732361]
[1734838090333,1.0228343,183.35,183.29,0.6732361]
[1734838090534,20.0,183.36,183.29,0.6732361]
[1734838090963,1.02272193,183.35,183.29,0.6732361]
[1734838091160,20.0,183.37,183.29,0.6732361]
[1734838091540,4.1424,183.39,183.29,29.7819884]
[1734838091775,1.0224561,183.38,183.29,0.6732361]
[1734838092664,0.10062921,183.3,183.29,0.6732361]
[1734838095160,0.10062921,183.3,183.29,29.7819884]
[1734838095357,0.10062921,183.3,183.29,0.6732361]
[1734838102648,23.69192921,183.3,183.29,0.6732361]
[1734838104779,0.10062921,183.3,183.29,0.6732361]
[1734838112169,23.776884,183.35,183.29,0.6732361]
[1734838112361,20.0,183.32,183.29,0.6732361]
[1734838112565,0.10876504,183.3,183.29,0.6732361]
[1734838112774,23.88564904,183.3,183.29,0.6732361]
[1734838113072,27.47694904,183.3,183.29,0.6732361]
[1734838113271,3.70006504,183.3,183.29,0.6732361]
[1734838113456,0.10876504,183.3,183.29,0.6732361]
[1734838117186,23.88564904,183.3,183.29,0.6732361]
[1734838120285,0.10876504,183.3,183.29,0.6732361]
[1734838122275,1.13170852,183.3,183.29,0.6732361]
[1734838123792,26.27239252,183.3,183.29,0.6732361]
[1734838123964,29.86369252,183.3,183.29,3.61e-05]
[1734838124166,30.41479252,183.3,183.29,3.61e-05]
[1734838125106,30.41479252,183.3,183.17,8.1346]
[1734838125394,20.0,183.26,183.17,1.6611]
[1734838125568,1.02341973,183.25,183.17,1.6611]
[1734838126612,1.02347124,183.26,183.17,1.6611]
[1734838126888,21.02332057,183.27,183.17,30.7698523]
[1734838127098,27.47694904,183.3,183.18,29.1087523]
[1734838127099,1.02319714,183.29,183.18,29.1087523]
[1734838127267,1.02319714,183.29,183.17,30.7698523]
[1734838129171,1.02319714,183.29,183.17,1.6611]
[1734838129172,23.776884,183.28,183.17,1.6611]
[1734838129467,1.02329737,183.27,183.17,1.6611]
[1734838132502,20.0,183.25,183.13,37.2329523]
[1734838132680,0.12005857,183.18,183.13,37.2329523]
[1734838133987,0.12005857,183.18,183.13,8.1242]
[1734838134185,0.12005857,183.18,183.09,30.7594523]
[1734838134391,1.14374513,183.18,183.09,1.6507]
[1734838138519,20.0,183.14,183.04,1.6507]
[1734838138728,0.12005857,183.18,183.07,29.1087523]
[1734838139029,0.12005857,183.18,183.08,29.1087523]
[1734838140845,0.12005857,183.18,183.11,29.7819884]
[1734838141054,0.12005857,183.18,183.12,6.2147]
[1734838141834,0.12005857,183.18,183.11,0.6732361]
[1734838142316,1.02370532,183.17,183.11,0.6732361]
[1734838144017,1.02382122,183.16,183.11,0.6732361]
[1734838144316,1.14389111,183.18,183.11,0.6732361]
[1734838144629,25.141684,183.17,183.11,0.6732361]
[1734838144833,20.0,183.14,183.11,0.6732361]
[1734838145012,1.02400019,183.13,183.11,0.6732361]
[1734838145827,23.776884,183.12,183.11,0.6732361]
[1734838146219,23.776884,183.12,183.11,3.61e-05]
[1734838146418,20.0,183.09,182.98,6.2147]
[1734838146641,20.0,183.05,182.98,6.2147]
[1734838147314,1.02446566,183.04,182.98,6.2147]
[1734838147513,1.02449974,183.07,182.98,6.2147]
[1734838147735,1.02443447,183.07,182.98,6.2147]
[1734838148036,23.776884,183.09,182.98,6.2147]
[1734838148245,1.02430516,183.1,183.0,29.1087523]
[1734838148542,1.02414971,183.12,183.0,29.1087523]
[1734838149124,1.02409657,183.15,183.0,29.1087523]
[1734838149849,20.0,183.14,183.0,29.1087523]
[1734838150052,23.776884,183.12,183.0,29.1087523]
[1734838150227,1.02413621,183.11,183.0,29.1087523]
[1734838150434,23.776884,183.08,182.98,6.2147]
[1734838150654,1.02437621,183.07,182.98,6.2147]
[1734838151525,24.8012618,183.08,182.98,6.2147]
[1734838152752,0.11643609,182.99,182.98,6.2147]
[1734838154927,0.11643609,182.99,182.98,48.9860523]
[1734838155128,0.11643609,182.99,182.98,72.7629363]
[1734838156147,0.11643609,182.99,182.98,35.3234523]
[1734838156329,0.11643609,182.99,182.98,6.2147]
[1734838156530,0.11643609,182.99,182.98,35.3234523]
[1734838157149,0.11643609,182.99,182.98,6.2147]
[1734838158671,0.11643609,182.99,182.98,59.1003363]
[1734838159153,0.10874898,183.01,182.99,23.776884]
[1734838159450,0.10874898,183.01,183.0,29.1087523]
[1734838161027,0.10874898,183.01,182.98,48.9860523]
[1734838161223,0.10874898,183.01,183.0,20.0]
[1734838161445,0.10874898,183.01,182.98,6.2147]
[1734838163357,0.10874898,183.01,182.96,1.6507]
[1734838166950,0.10874898,183.01,182.97,52.8856363]
[1734838167141,0.10874898,183.01,182.99,29.1087523]
[1734838167741,0.10874898,183.01,182.98,29.1087523]
[1734838168358,0.10874898,183.01,183.0,29.1087523]
[1734838169739,0.10874898,183.01,183.0,20.0]
[1734838170862,0.10874898,183.01,183.0,29.1087523]
[1734838172239,23.776884,183.11,183.0,29.1087523]
[1734838172661,0.10998213,183.01,183.0,29.1087523]
[1734838172969,0.10998213,183.01,182.99,29.1087523]
[1734838174058,0.10998213,183.01,182.99,18.06803701]
[1734838175380,0.10998213,183.01,182.98,18.06803701]
[1734838177067,0.10998213,183.01,183.0,41.84492101]
[1734838177655,0.00230354,183.03,183.0,41.84492101]
[1734838177975,1.02376339,183.19,183.03,1.5747]
[1734838178276,1.02376339,183.19,183.07,41.84492101]
[1734838178780,1.69115797,183.2,183.07,41.84492101]
[1734838179749,20.0,183.18,183.07,41.84492101]
[1734838179951,0.6675,183.2,183.07,41.84492101]
[1734838180152,1.69115662,183.2,183.07,53.11456778]
[1734838180772,20.0,183.18,183.07,53.11456778]
[1734838181074,0.6675,183.2,183.07,53.11456778]
[1734838181276,20.0,183.18,183.07,53.11456778]
[1734838181675,1.69114526,183.2,183.07,53.11456778]
[1734838181871,1.69114526,183.2,183.07,29.33768378]
[1734838182053,3.05574526,183.2,183.06,20.0]
[1734838182374,20.0,183.18,183.07,20.0]
[1734838182574,1.02379013,183.17,183.07,20.0]
[1734838182771,1.02378639,183.19,183.05,29.33768378]
[1734838183164,1.02378639,183.19,183.04,53.11456778]
[1734838184263,1.02378639,183.19,183.04,29.33768378]
[1734838184571,1.02378639,183.19,183.05,29.33768378]
[1734838185455,20.0,183.17,183.05,29.33768378]
[1734838185655,1.02378639,183.19,183.06,29.33768378]
[1734838186173,1.02378639,183.19,183.05,29.33768378]
[1734838188989,1.02378639,183.19,183.07,29.33768378]
[1734838189188,1.02378639,183.19,183.06,29.33768378]
[1734838189363,1.02378639,183.19,183.05,29.33768378]
[1734838190783,1.3648,183.18,183.05,29.33768378]
[1734838190961,1.02390193,183.17,183.05,29.33768378]
[1734838191986,1.3648,183.18,183.06,29.33768378]
[1734838192185,1.02382518,183.17,183.06,29.33768378]
[1734838192368,22.38854875,183.18,183.06,29.33768378]
[1734838192688,0.11918971,183.07,183.06,29.33768378]
[1734838193058,0.11004827,183.11,183.06,82.45225156]
[1734838193264,0.11004827,183.11,183.1,29.33768378]
[1734838193458,0.11004827,183.11,183.07,29.33768378]
[1734838194084,0.11004827,183.11,183.08,29.33768378]
[1734838198506,0.11004827,183.11,183.07,29.33768378]
[1734838199166,0.11004827,183.11,183.02,35.86508378]
[1734838199502,0.11004827,183.11,182.99,29.33768378]
[1734838199503,20.0,183.1,182.99,29.33768378]
[1734838199693,20.0,183.08,182.99,29.33768378]
[1734838200585,24.80108608,183.07,182.97,29.33768378]
[1734838200784,20.0,183.09,182.99,29.33768378]
[1734838201587,20.0,183.09,183.01,29.33768378]
[1734838201786,20.77754827,183.11,183.03,29.33768378]
[1734838202010,20.77754827,183.11,183.03,18.06254662]
[1734838202192,0.11004827,183.11,183.04,18.06254662]
[1734838202397,0.11004827,183.11,183.05,18.06254662]
[1734838203111,0.11004827,183.11,183.07,18.06254662]
[1734838203732,0.11004827,183.11,183.09,18.06254662]
[1734838203887,0.11004827,183.11,183.1,18.06254662]
[1734838204209,0.11004827,183.11,183.06,33.22544662]
[1734838204210,0.11004827,183.11,183.09,18.06254662]
[1734838204386,0.11004827,183.11,183.04,18.06254662]
[1734838204584,0.11004827,183.11,183.01,18.06254662]
[1734838204787,1.13407972,183.11,182.99,18.06254662]
[1734838204988,20.0,183.1,182.98,18.06254662]
[1734838205207,24.80111746,183.09,182.99,18.06254662]
[1734838205409,23.776884,183.09,182.99,18.06254662]
[1734838206213,24.8010706,183.09,182.99,18.06254662]
[1734838207013,20.0,183.06,182.97,8.1615]
[1734838207192,20.0,183.06,182.96,18.06254662]
[1734838207388,20.0,183.02,182.93,18.73578272]
[1734838207598,24.80146907,183.01,182.93,0.6732361]
[1734838207798,20.0,182.98,182.93,0.6732361]
[1734838208310,24.80165258,182.97,182.93,0.6732361]
[1734838208922,20.0,182.99,182.93,0.6732361]
[1734838209413,1.02471637,183.01,182.93,0.6732361]
[1734838209587,4.2588,183.03,182.94,18.06254662]
[1734838209793,28.035684,183.09,182.97,18.06254662]
[1734838209990,23.776884,183.07,182.94,8.1615]
[1734838210206,4.2588,183.09,183.0,18.06254662]
[1734838210402,4.2588,183.09,182.99,18.06254662]
[1734838210712,0.11004827,183.11,183.01,18.06254662]
[1734838211597,0.11004827,183.11,182.97,31.72574662]
[1734838211797,0.11004827,183.11,183.04,18.06254662]
[1734838212002,0.11004827,183.11,183.08,18.06254662]
[1734838212205,1.02366306,183.2,183.09,18.06254662]
[1734838212394,9.54737904,183.21,183.1,18.06254662]
[1734838212719,0.11844218,183.11,183.09,18.06254662]
[1734838213298,0.11844218,183.11,183.1,18.06254662]
[1734838214013,0.11844218,183.11,183.1,29.32753198]
[1734838215999,0.11844218,183.11,183.07,29.32753198]
[1734838216402,0.11844218,183.11,183.09,29.32753198]
[1734838217215,0.11844218,183.11,183.1,29.32753198]
[1734838217716,0.11844218,183.11,183.08,29.32753198]
[1734838218127,0.11844218,183.11,183.1,29.32753198]
[1734838218419,0.11844218,183.11,183.08,29.32753198]
[1734838218608,0.11844218,183.11,183.05,29.32753198]
[1734838218918,0.11844218,183.11,183.01,29.32753198]
[1734838219358,0.11844218,183.11,183.02,29.32753198]
[1734838219703,0.11844218,183.11,183.05,29.32753198]
[1734838220116,0.11844218,183.11,183.06,29.32753198]
[1734838220323,0.11844218,183.11,183.07,29.32753198]
[1734838220526,0.11844218,183.11,183.09,29.32753198]
[1734838220712,0.11844218,183.11,183.1,29.32753198]
[1734838221844,0.11844218,183.11,183.1,53.10441598]
[1734838222046,0.11844218,183.11,183.1,66.75811598]
[1734838223143,9.285e-05,183.13,183.1,66.75811598]
[1734838223361,4.868e-05,183.14,183.13,6.636]
[1734838223646,4.868e-05,183.14,183.13,61.39931598]
[1734838224439,4.868e-05,183.14,183.13,37.62243198]
[1734838224645,4.868e-05,183.14,183.13,29.32753198]
[1734838225222,4.868e-05,183.14,183.13,53.10441598]
[1734838225430,4.868e-05,183.14,183.13,29.32753198]
[1734838225746,4.868e-05,183.14,183.12,29.32753198]
[1734838227351,4.868e-05,183.14,183.13,29.32753198]
[1734838227764,4.868e-05,183.14,183.13,53.10441598]
[1734838230249,4.868e-05,183.14,183.13,29.32753198]
[1734838230552,4.868e-05,183.14,183.09,1.6589]
[1734838230553,4.868e-05,183.14,183.1,29.32753198]
[1734838230846,4.868e-05,183.14,183.09,29.32753198]
[1734838231043,4.868e-05,183.14,183.1,29.32753198]
[1734838232147,3.5913,183.2,183.1,29.32753198]
[1734838232351,1.02363163,183.19,183.1,29.32753198]
[1734838232550,20.0,183.18,183.08,29.32753198]
[1734838232755,0.11032975,183.11,183.07,29.32753198]
[1734838232924,0.11032975,183.11,183.02,29.32753198]
[1734838233326,1.13434131,183.11,183.01,29.32753198]
[1734838233527,4.72564131,183.11,183.01,29.32753198]
[1734838233725,20.0,183.09,183.01,29.32753198]
[1734838233929,3.70162975,183.11,183.04,29.32753198]
[1734838234142,0.11032975,183.11,183.06,29.32753198]
[1734838234347,0.11032975,183.11,183.08,29.32753198]
[1734838235726,0.11032975,183.11,183.09,29.32753198]
[1734838235954,0.11032975,183.11,183.1,29.32753198]
[1734838236253,0.11032975,183.11,183.08,29.32753198]
[1734838237246,0.11032975,183.11,183.01,2.15148182]
[1734838237247,0.11032975,183.11,183.05,29.32753198]
[1734838237568,0.11032975,183.11,183.03,29.32753198]
[1734838237739,0.11032975,183.11,182.99,8.2617]
[1734838237740,0.11032975,183.11,183.04,29.32753198]
[1734838238057,27.368184,183.1,182.99,29.32753198]
[1734838238261,20.0,183.07,182.96,29.32753198]
[1734838238442,20.0,183.07,182.98,29.32753198]
[1734838238641,20.0,183.07,182.99,29.32753198]
[1734838238862,27.368184,183.1,183.0,29.32753198]
[1734838239059,1.02418091,183.09,182.98,29.32753198]
[1734838239237,1.02418091,183.09,182.97,29.32753198]
[1734838239432,20.0,183.05,182.96,29.32753198]
[1734838239657,20.0,183.05,182.97,29.32753198]
[1734838239857,1.02418091,183.09,182.99,29.32753198]
[1734838240258,27.368184,183.1,182.99,29.32753198]
[1734838240562,0.11032975,183.11,183.03,53.10441598]
[1734838240751,0.11032975,183.11,183.03,29.32753198]
[1734838241138,0.11032975,183.11,182.99,13.6615]
[1734838241353,1.0240917,183.1,182.97,29.32753198]
[1734838241549,1.0240917,183.1,182.95,6.0325]
[1734838241550,1.0240917,183.1,182.96,29.32753198]
[1734838241749,20.0,183.06,182.97,29.32753198]
[1734838241949,1.02428946,183.08,182.98,29.32753198]
[1734838242149,1.0242404,183.08,182.98,29.32753198]
[1734838242452,23.776884,183.09,182.98,29.32753198]
[1734838242670,0.11032975,183.11,183.03,29.32753198]
[1734838242846,0.11032975,183.11,183.02,29.32753198]
[1734838243048,0.11032975,183.11,183.03,29.32753198]
[1734838246763,0.11032975,183.11,183.05,29.32753198]
[1734838247069,0.11032975,183.11,183.08,29.32753198]
[1734838247659,0.11032975,183.11,183.1,29.32753198]
[1734838247853,0.11032975,183.11,183.09,29.32753198]
[1734838248161,0.11032975,183.11,183.1,29.32753198]
[1734838249543,2.975e-05,183.11,183.1,53.10441598]
[1734838249756,0.10385185,183.17,183.1,53.10441598]
[1734838249757,4.61458072,183.31,183.14,20.0]
[1734838249955,3.5913,183.31,183.18,73.10441598]
[1734838250243,1.02296686,183.3,183.18,73.10441598]
[1734838250644,3.5913,183.31,183.18,73.10441598]
[1734838250942,3.5913,183.31,183.18,53.10441598]
[1734838251145,23.5913,183.31,183.18,53.10441598]
[1734838252043,3.5913,183.31,183.18,53.10441598]
[1734838252362,20.0,183.29,183.18,53.10441598]
[1734838252556,20.0,183.29,183.19,29.32753198]
[1734838252752,0.10293874,183.2,183.18,29.32753198]
[1734838253356,0.10293874,183.2,183.19,29.32753198]
[1734838254172,0.10293874,183.2,183.19,53.10441598]
[1734838255371,0.10293874,183.2,183.19,29.32753198]
[1734838255578,0.10293874,183.2,183.18,49.32753198]
[1734838255760,0.11921559,183.21,183.19,53.10441598]
[1734838256075,0.11921559,183.21,183.2,29.32753198]
[1734838256789,0.11921559,183.21,183.2,53.10441598]
[1734838256965,0.1018824,183.24,183.21,23.776884]
[1734838256966,1.117e-05,183.24,183.21,23.776884]
[1734838257302,1.067e-05,183.25,183.24,6.0021]
[1734838257596,9.59e-06,183.28,183.27,43.776884]
[1734838257766,9.59e-06,183.28,183.27,73.10441598]
[1734838257950,3.5913,183.43,183.28,43.776884]
[1734838258149,42.6189605,183.46,183.37,29.32753198]
[1734838258356,42.6189605,183.46,183.38,29.32753198]
[1734838258659,3.5913,183.48,183.39,29.32753198]
[1734838258848,3.5913,183.48,183.35,6.2333]
[1734838258849,1.0220503,183.47,183.35,29.32753198]
[1734838259280,2.3846503,183.47,183.33,29.32753198]
[1734838259643,20.0,183.45,183.33,29.32753198]
[1734838260147,1.02218916,183.44,183.33,29.32753198]
[1734838260386,1.02218916,183.44,183.31,29.32753198]
[1734838260779,1.02218916,183.44,183.32,29.32753198]
[1734838261098,23.776884,183.43,183.3,53.10441598]
[1734838261313,20.0,183.4,183.3,29.32753198]
[1734838261512,23.776884,183.37,183.21,6.2333]
[1734838261689,23.776884,183.33,183.2,29.32753198]
[1734838262014,23.776884,183.33,183.23,30.0]
[1734838262201,20.0,183.36,183.22,29.32753198]
[1734838262373,24.79968576,183.35,183.22,29.32753198]
[1734838262574,20.0,183.32,183.22,29.32753198]
[1734838263415,23.776884,183.37,183.23,23.776884]
[1734838263570,23.776884,183.33,183.22,29.32753198]
[1734838263777,20.0,183.3,183.2,29.32753198]
[1734838264619,20.0,183.3,183.18,29.32753198]
[1734838264620,24.79983251,183.29,183.18,29.32753198]
[1734838265291,24.79983251,183.29,183.16,1.5918]
[1734838265292,20.0,183.26,183.16,29.32753198]
[1734838265526,20.0,183.24,183.14,29.32753198]
[1734838265813,1.02338086,183.23,183.13,29.32753198]
[1734838266385,1.02338086,183.23,183.09,29.32753198]
[1734838266687,20.0,183.19,183.02,6.2333]
[1734838266922,1.02380835,183.18,183.05,29.32753198]
[1734838267215,1.02380835,183.18,183.06,29.32753198]
[1734838267418,20.0,183.19,183.08,29.32753198]
[1734838267586,1.02376426,183.18,183.07,29.32753198]
[1734838267787,20.0,183.19,183.1,29.32753198]
[1734838268320,20.0,183.24,183.11,29.32753198]
[1734838268644,21.02350033,183.23,183.11,29.32753198]
[1734838268942,3.5913,183.25,183.14,53.10441598]
[1734838269106,1.02335587,183.24,183.13,29.32753198]
[1734838269926,3.5913,183.25,183.14,53.10441598]
[1734838270115,3.5913,183.25,183.15,29.32753198]
[1734838270316,3.5913,183.25,183.16,29.32753198]
[1734838270515,3.5913,183.3,183.17,29.32753198]
[1734838270823,1.02311773,183.29,183.18,53.10441598]
[1734838271024,1.02311773,183.29,183.18,23.776884]
[1734838271416,1.02311773,183.29,183.16,20.0]
[1734838271628,1.02311773,183.29,183.15,29.32753198]
[1734838271816,1.02311773,183.29,183.16,73.10441598]
[1734838272015,25.140884,183.28,183.12,29.32753198]
[1734838272220,21.02343569,183.27,183.15,23.776884]
[1734838272417,21.02343569,183.27,183.15,29.32753198]
[1734838272623,3.5913,183.3,183.2,53.10441598]
[1734838272816,0.10405068,183.21,183.2,53.10441598]